[Event "Late-Titled-Tuesday-Blitz-February-20-2024"]
[Site "Chess.com"]
[Date "2024.02.20"]
[Round "3"]
[White "Fluffey"]
[Black "ArtemDyachuk"]
[Result "0-1"]
[WhiteElo "2417"]
[BlackElo "2656"]
[TimeControl "180+1"]
[EndTime "14:26:21 PST"]
[Termination "ArtemDyachuk won by resignation"]

1. d4 {[%clk 0:03:00.9]} 1... d5 {[%clk 0:02:58.4]} 2. Bf4 {[%clk 0:03:01.4]}
2... Nf6 {[%clk 0:02:56.8]} 3. e3 {[%clk 0:03:01.9]} 3... c5 {[%clk 0:02:56.4]}
4. Nf3 {[%clk 0:03:02.4]} 4... Nc6 {[%clk 0:02:56.4]} 5. Nbd2 {[%clk 0:03:02.9]}
5... g6 {[%clk 0:02:56.3]} 6. h3 {[%clk 0:03:00.5]} 6... Bg7 {[%clk 0:02:56.7]}
7. c3 {[%clk 0:03:01.3]} 7... O-O {[%clk 0:02:57.2]} 8. Be2 {[%clk 0:03:02]}
8... Nd7 {[%clk 0:02:57.6]} 9. O-O {[%clk 0:03:01.4]} 9... e5 {[%clk 0:02:58.2]}
10. dxe5 {[%clk 0:03:01.3]} 10... Ndxe5 {[%clk 0:02:59.1]} 11. Nxe5 {[%clk
0:02:58.3]} 11... Nxe5 {[%clk 0:03:00]} 12. Nf3 {[%clk 0:02:59]} 12... Nc6
{[%clk 0:02:57.1]} 13. Qa4 {[%clk 0:02:57.6]} 13... h6 {[%clk 0:02:56.2]} 14.
Rfd1 {[%clk 0:02:56.6]} 14... Qb6 {[%clk 0:02:44.7]} 15. Qa3 {[%clk 0:02:53.3]}
15... Be6 {[%clk 0:02:43.1]} 16. Bd6 {[%clk 0:02:53.1]} 16... c4 {[%clk
0:02:33.4]} 17. Bxf8 {[%clk 0:02:38.3]} 17... Bxf8 {[%clk 0:02:34.3]} 18. Qa4
{[%clk 0:02:38.9]} 18... Qxb2 {[%clk 0:02:33.1]} 19. Rab1 {[%clk 0:02:37.6]}
19... Qxc3 {[%clk 0:02:25.1]} 20. Rxb7 {[%clk 0:02:35.8]} 20... Rc8 {[%clk
0:01:57.2]} 21. Rdb1 {[%clk 0:02:03.8]} 21... Bc5 {[%clk 0:01:54]} 22. Bf1
{[%clk 0:01:56.3]} 22... d4 {[%clk 0:01:47.1]} 23. exd4 {[%clk 0:01:56]} 23...
Nxd4 {[%clk 0:01:48]} 24. Nxd4 {[%clk 0:01:56.4]} 24... Qxd4 {[%clk 0:01:45.2]}
25. R1b2 {[%clk 0:01:48.2]} 25... Rd8 {[%clk 0:00:56.1]} 26. Rc2 {[%clk
0:01:44.2]} 26... Qe4 {[%clk 0:00:41]} 27. Rxc4 {[%clk 0:01:31.3]} 27... Bxc4
{[%clk 0:00:38.2]} 28. Qxc4 {[%clk 0:01:31.9]} 28... Bxf2+ {[%clk 0:00:36.4]}
29. Kxf2 {[%clk 0:01:30.3]} 29... Qxb7 {[%clk 0:00:37.3]} 30. Kg1 {[%clk
0:01:26.6]} 30... Rc8 {[%clk 0:00:35.4]} 31. Qa4 {[%clk 0:01:25]} 31... Qb6+
{[%clk 0:00:34.6]} 32. Kh2 {[%clk 0:01:23.8]} 32... Qd6+ {[%clk 0:00:34.1]} 33.
Kg1 {[%clk 0:01:23.6]} 33... Qc5+ {[%clk 0:00:34.1]} 34. Kh2 {[%clk 0:01:23]}
34... Qe5+ {[%clk 0:00:34.1]} 35. Kg1 {[%clk 0:01:23.2]} 35... Qe3+ {[%clk
0:00:34.6]} 36. Kh2 {[%clk 0:01:22.7]} 36... Rc1 {[%clk 0:00:34.4]} 37. Bd3
{[%clk 0:00:40]} 37... Qe5+ {[%clk 0:00:32.2]} 38. g3 {[%clk 0:00:37.9]} 38...
Qb2+ {[%clk 0:00:31.8]} 0-1

[Event "Late-Titled-Tuesday-Blitz-February-20-2024"]
[Site "Chess.com"]
[Date "2024.02.20"]
[Round "3"]
[White "jsdbv18"]
[Black "MeisterJabo"]
[Result "0-1"]
[WhiteElo "2617"]
[BlackElo "2428"]
[TimeControl "180+1"]
[EndTime "14:26:23 PST"]
[Termination "MeisterJabo won by resignation"]

1. d4 {[%clk 0:02:56.6]} 1... Nf6 {[%clk 0:02:59.2]} 2. c4 {[%clk 0:02:56.4]}
2... e6 {[%clk 0:02:58.9]} 3. Nf3 {[%clk 0:02:57.1]} 3... d5 {[%clk 0:02:59.1]}
4. Nc3 {[%clk 0:02:57.1]} 4... Be7 {[%clk 0:02:58.7]} 5. e3 {[%clk 0:02:57]}
5... O-O {[%clk 0:02:57.1]} 6. Qc2 {[%clk 0:02:55.4]} 6... b6 {[%clk 0:02:55.4]}
7. cxd5 {[%clk 0:02:55.7]} 7... Nxd5 {[%clk 0:02:53.8]} 8. Bc4 {[%clk
0:02:55.3]} 8... Bb7 {[%clk 0:02:51.6]} 9. Nxd5 {[%clk 0:02:52.9]} 9... exd5
{[%clk 0:02:49.2]} 10. Bd3 {[%clk 0:02:52.2]} 10... h6 {[%clk 0:02:48]} 11. O-O
{[%clk 0:02:48.5]} 11... c5 {[%clk 0:02:47.5]} 12. dxc5 {[%clk 0:02:48]} 12...
bxc5 {[%clk 0:02:46.7]} 13. Rd1 {[%clk 0:02:46.7]} 13... Nc6 {[%clk 0:02:45.1]}
14. Qe2 {[%clk 0:02:45.2]} 14... Bd6 {[%clk 0:02:33.9]} 15. Ba6 {[%clk
0:02:34.9]} 15... Rb8 {[%clk 0:02:07.6]} 16. Bxb7 {[%clk 0:02:34.6]} 16... Rxb7
{[%clk 0:02:08.5]} 17. b3 {[%clk 0:02:34.7]} 17... d4 {[%clk 0:01:52.5]} 18.
exd4 {[%clk 0:02:32.6]} 18... cxd4 {[%clk 0:01:48.8]} 19. Bb2 {[%clk 0:02:32.2]}
19... Re8 {[%clk 0:01:46.1]} 20. Qc4 {[%clk 0:02:30.5]} 20... Ne5 {[%clk
0:01:15.5]} 21. Nxe5 {[%clk 0:02:09.7]} 21... Bxe5 {[%clk 0:01:14.1]} 22. Bxd4
{[%clk 0:02:08.7]} 22... Bxd4 {[%clk 0:01:13.7]} 23. Rxd4 {[%clk 0:02:06.8]}
23... Rd7 {[%clk 0:01:10.8]} 24. Rxd7 {[%clk 0:02:05.1]} 24... Qxd7 {[%clk
0:01:11.7]} 25. g3 {[%clk 0:02:02.4]} 25... Qd2 {[%clk 0:01:03.7]} 26. Qc1
{[%clk 0:01:48.5]} 26... Qd4 {[%clk 0:00:51]} 27. Qd1 {[%clk 0:01:43.8]} 27...
Qb2 {[%clk 0:00:50.4]} 28. Qc1 {[%clk 0:01:00.8]} 28... Qd4 {[%clk 0:00:49.3]}
29. Qf1 {[%clk 0:00:48.3]} 29... Qb2 {[%clk 0:00:46.3]} 30. a4 {[%clk
0:00:41.3]} 30... Qxb3 {[%clk 0:00:43.9]} 31. a5 {[%clk 0:00:41.1]} 31... Qb4
{[%clk 0:00:31.4]} 32. a6 {[%clk 0:00:39.8]} 32... Rb8 {[%clk 0:00:20]} 33. Qd3
{[%clk 0:00:37.4]} 33... Qb5 {[%clk 0:00:16.9]} 34. Qd7 {[%clk 0:00:36.1]} 34...
Qxd7 {[%clk 0:00:15.7]} 0-1

[Event "Late-Titled-Tuesday-Blitz-February-20-2024"]
[Site "Chess.com"]
[Date "2024.02.20"]
[Round "3"]
[White "Eesha-Karavade"]
[Black "Jahonas"]
[Result "1-0"]
[WhiteElo "2412"]
[BlackElo "2338"]
[TimeControl "180+1"]
[EndTime "14:26:24 PST"]
[Termination "Eesha-Karavade won by resignation"]

1. Nf3 {[%clk 0:03:00.9]} 1... d5 {[%clk 0:02:59.7]} 2. d4 {[%clk 0:02:58.3]}
2... Nf6 {[%clk 0:02:59.5]} 3. c4 {[%clk 0:02:58.2]} 3... c6 {[%clk 0:02:59.8]}
4. e3 {[%clk 0:02:54]} 4... Bg4 {[%clk 0:02:59.3]} 5. Nc3 {[%clk 0:02:48.5]}
5... e6 {[%clk 0:02:58.8]} 6. h3 {[%clk 0:02:47.7]} 6... Bxf3 {[%clk 0:02:58.2]}
7. Qxf3 {[%clk 0:02:47.2]} 7... Nbd7 {[%clk 0:02:58.9]} 8. Qd1 {[%clk
0:02:41.6]} 8... Bd6 {[%clk 0:02:55.9]} 9. Be2 {[%clk 0:02:40.9]} 9... O-O
{[%clk 0:02:55.3]} 10. O-O {[%clk 0:02:40.7]} 10... dxc4 {[%clk 0:02:55]} 11.
Bxc4 {[%clk 0:02:40.2]} 11... e5 {[%clk 0:02:54.8]} 12. Bb3 {[%clk 0:02:25.7]}
12... Nb6 {[%clk 0:02:51.7]} 13. Qf3 {[%clk 0:02:06.3]} 13... Qe7 {[%clk
0:02:49.2]} 14. Bc2 {[%clk 0:01:58.4]} 14... Rad8 {[%clk 0:02:43.4]} 15. Rd1
{[%clk 0:01:50.6]} 15... Nbd5 {[%clk 0:02:38.5]} 16. Nxd5 {[%clk 0:01:40.3]}
16... cxd5 {[%clk 0:02:37.4]} 17. dxe5 {[%clk 0:01:40.1]} 17... Qxe5 {[%clk
0:02:36]} 18. Rb1 {[%clk 0:01:32]} 18... Qh2+ {[%clk 0:02:26.7]} 19. Kf1 {[%clk
0:01:30.9]} 19... Be5 {[%clk 0:02:07.5]} 20. Bd2 {[%clk 0:01:29.2]} 20... Rc8
{[%clk 0:01:43.8]} 21. Bd3 {[%clk 0:01:26.7]} 21... Rfd8 {[%clk 0:01:23.3]} 22.
Ke2 {[%clk 0:01:24.2]} 22... Bb8 {[%clk 0:00:47.1]} 23. Bc3 {[%clk 0:01:23.1]}
23... Rxc3 {[%clk 0:00:44.6]} 24. bxc3 {[%clk 0:01:22.6]} 24... b6 {[%clk
0:00:42.9]} 25. c4 {[%clk 0:01:08.6]} 25... Qe5 {[%clk 0:00:38.9]} 26. g3 {[%clk
0:01:02.4]} 26... g6 {[%clk 0:00:38.2]} 27. Kf1 {[%clk 0:00:58.7]} 27... Kg7
{[%clk 0:00:35.3]} 28. Kg2 {[%clk 0:00:58.2]} 28... h5 {[%clk 0:00:34.5]} 29. h4
{[%clk 0:00:51.8]} 29... Qe6 {[%clk 0:00:34.2]} 30. cxd5 {[%clk 0:00:51.1]}
30... Nxd5 {[%clk 0:00:33.3]} 31. Bc4 {[%clk 0:00:45.5]} 31... Nxe3+ {[%clk
0:00:14.9]} 32. Qxe3 {[%clk 0:00:44.4]} 1-0

[Event "Late-Titled-Tuesday-Blitz-February-20-2024"]
[Site "Chess.com"]
[Date "2024.02.20"]
[Round "3"]
[White "Zkid"]
[Black "rhungaski"]
[Result "1-0"]
[WhiteElo "2916"]
[BlackElo "2604"]
[TimeControl "180+1"]
[EndTime "14:26:32 PST"]
[Termination "Zkid won on time"]

1. e4 {[%clk 0:03:00.9]} 1... g6 {[%clk 0:02:57.7]} 2. d4 {[%clk 0:03:00.8]}
2... Bg7 {[%clk 0:02:58.1]} 3. Nc3 {[%clk 0:03:01.5]} 3... d6 {[%clk 0:02:58.6]}
4. Be3 {[%clk 0:03:01.8]} 4... a6 {[%clk 0:02:59]} 5. Qd2 {[%clk 0:03:01.1]}
5... b5 {[%clk 0:02:59.3]} 6. h4 {[%clk 0:03:01.4]} 6... h6 {[%clk 0:02:58.8]}
7. O-O-O {[%clk 0:03:00.7]} 7... Bb7 {[%clk 0:02:56.6]} 8. f3 {[%clk 0:03:00.1]}
8... Nd7 {[%clk 0:02:57.1]} 9. Nh3 {[%clk 0:02:56.8]} 9... Rc8 {[%clk 0:02:53]}
10. Kb1 {[%clk 0:02:52.6]} 10... c5 {[%clk 0:02:50]} 11. dxc5 {[%clk 0:02:52.6]}
11... Nxc5 {[%clk 0:02:50.9]} 12. Bd4 {[%clk 0:02:52.4]} 12... Bxd4 {[%clk
0:02:33.3]} 13. Qxd4 {[%clk 0:02:52.2]} 13... Nf6 {[%clk 0:02:34]} 14. g4 {[%clk
0:02:41.7]} 14... Qc7 {[%clk 0:02:15.1]} 15. g5 {[%clk 0:02:33]} 15... Ne6
{[%clk 0:02:10.9]} 16. Qd2 {[%clk 0:02:29]} 16... hxg5 {[%clk 0:02:10.2]} 17.
hxg5 {[%clk 0:02:29.9]} 17... Nh5 {[%clk 0:02:01.9]} 18. Nd5 {[%clk 0:02:22.1]}
18... Bxd5 {[%clk 0:01:57.8]} 19. exd5 {[%clk 0:02:22.9]} 19... Neg7 {[%clk
0:01:57.8]} 20. Bd3 {[%clk 0:02:17.1]} 20... Qb6 {[%clk 0:01:10.4]} 21. Nf4
{[%clk 0:02:11.4]} 21... Kd7 {[%clk 0:00:54.4]} 22. Rde1 {[%clk 0:02:02.4]}
22... Rce8 {[%clk 0:00:52.4]} 23. Ne2 {[%clk 0:01:53]} 23... e5 {[%clk
0:00:45.1]} 24. dxe6+ {[%clk 0:01:50.5]} 24... Nxe6 {[%clk 0:00:45.3]} 25. f4
{[%clk 0:01:44.2]} 25... Nc5 {[%clk 0:00:36.1]} 26. f5 {[%clk 0:01:32]} 26...
Nxd3 {[%clk 0:00:35.4]} 27. Qxd3 {[%clk 0:01:32.6]} 27... Rhg8 {[%clk
0:00:14.2]} 28. Qd5 {[%clk 0:01:26.3]} 28... Rgf8 {[%clk 0:00:09.2]} 29. Nc3
{[%clk 0:01:05.4]} 29... Nf4 {[%clk 0:00:08.8]} 30. Qf3 {[%clk 0:01:02.5]} 30...
Qd4 {[%clk 0:00:08.3]} 31. Qb7+ {[%clk 0:00:58.8]} 31... Kd8 {[%clk 0:00:08.9]}
32. Rd1 {[%clk 0:00:51.9]} 32... Qc5 {[%clk 0:00:03.2]} 33. Ne4 {[%clk
0:00:47.4]} 33... Rxe4 {[%clk 0:00:02.7]} 34. Qxe4 {[%clk 0:00:48.3]} 34... Qxf5
{[%clk 0:00:01.6]} 35. Rxd6+ {[%clk 0:00:47.1]} 1-0

[Event "Late-Titled-Tuesday-Blitz-February-20-2024"]
[Site "Chess.com"]
[Date "2024.02.20"]
[Round "3"]
[White "Korchmar_Vasiliy"]
[Black "bipe137"]
[Result "0-1"]
[WhiteElo "2755"]
[BlackElo "2536"]
[TimeControl "180+1"]
[EndTime "14:26:40 PST"]
[Termination "bipe137 won by resignation"]

1. e4 {[%clk 0:03:00.9]} 1... c5 {[%clk 0:02:59.7]} 2. d4 {[%clk 0:03:00.9]}
2... cxd4 {[%clk 0:02:59.3]} 3. Qxd4 {[%clk 0:03:01.8]} 3... Nc6 {[%clk
0:02:58.9]} 4. Qd3 {[%clk 0:03:02.4]} 4... Nf6 {[%clk 0:02:56.5]} 5. Nc3 {[%clk
0:03:03.1]} 5... e6 {[%clk 0:02:49.4]} 6. Bf4 {[%clk 0:03:02.5]} 6... d5 {[%clk
0:02:49.7]} 7. exd5 {[%clk 0:03:02.7]} 7... Nxd5 {[%clk 0:02:49.8]} 8. Nxd5
{[%clk 0:03:01.5]} 8... Qxd5 {[%clk 0:02:47.1]} 9. Qxd5 {[%clk 0:03:01]} 9...
exd5 {[%clk 0:02:48]} 10. O-O-O {[%clk 0:03:01.6]} 10... Be6 {[%clk 0:02:48.1]}
11. Nf3 {[%clk 0:03:01.6]} 11... Bc5 {[%clk 0:02:48.2]} 12. Bg3 {[%clk
0:02:53.8]} 12... h6 {[%clk 0:02:46.8]} 13. Bb5 {[%clk 0:02:47]} 13... Rc8
{[%clk 0:02:42.2]} 14. Nd4 {[%clk 0:02:44.4]} 14... Bxd4 {[%clk 0:02:36.9]} 15.
Rxd4 {[%clk 0:02:44.5]} 15... a6 {[%clk 0:02:36.4]} 16. Bxc6+ {[%clk 0:02:43.2]}
16... Rxc6 {[%clk 0:02:35.6]} 17. Re1 {[%clk 0:02:41.8]} 17... Kd7 {[%clk
0:02:32.5]} 18. Rb4 {[%clk 0:02:28.1]} 18... b5 {[%clk 0:02:26.1]} 19. a4 {[%clk
0:02:27.8]} 19... Rc4 {[%clk 0:02:21.9]} 20. Rxc4 {[%clk 0:02:20.5]} 20... bxc4
{[%clk 0:02:17.3]} 21. Kd2 {[%clk 0:02:09.4]} 21... h5 {[%clk 0:02:05.3]} 22. h4
{[%clk 0:02:03.9]} 22... Kc6 {[%clk 0:02:00.5]} 23. Be5 {[%clk 0:01:59.4]} 23...
Rg8 {[%clk 0:01:58.6]} 24. b4 {[%clk 0:01:51.3]} 24... g6 {[%clk 0:01:42.3]} 25.
Rb1 {[%clk 0:01:46.2]} 25... g5 {[%clk 0:01:36.8]} 26. b5+ {[%clk 0:01:34.9]}
26... axb5 {[%clk 0:01:36.6]} 27. axb5+ {[%clk 0:01:35.8]} 27... Kb7 {[%clk
0:01:37]} 28. g3 {[%clk 0:01:02.2]} 28... gxh4 {[%clk 0:01:34.5]} 29. gxh4
{[%clk 0:01:03.1]} 29... Rg4 {[%clk 0:01:32]} 30. b6 {[%clk 0:00:30.2]} 30... d4
{[%clk 0:01:18]} 31. Bg3 {[%clk 0:00:27.7]} 31... c3+ {[%clk 0:01:10.9]} 32. Kd1
{[%clk 0:00:22.4]} 32... Re4 {[%clk 0:01:06.3]} 33. f3 {[%clk 0:00:17.8]} 33...
Re3 {[%clk 0:01:00.5]} 34. Rb4 {[%clk 0:00:17.8]} 34... Rxf3 {[%clk 0:00:54.1]}
35. Be1 {[%clk 0:00:18.4]} 35... Re3 {[%clk 0:00:50.3]} 36. Bf2 {[%clk
0:00:15.8]} 36... Bg4+ {[%clk 0:00:48.6]} 37. Kc1 {[%clk 0:00:16.3]} 37... Re2
{[%clk 0:00:47.5]} 38. Bg3 {[%clk 0:00:16.8]} 38... Rg2 {[%clk 0:00:46.4]} 39.
Be1 {[%clk 0:00:04.4]} 39... Rg1 {[%clk 0:00:45.8]} 0-1

[Event "Late-Titled-Tuesday-Blitz-February-20-2024"]
[Site "Chess.com"]
[Date "2024.02.20"]
[Round "3"]
[White "midedu"]
[Black "Capablanca_Oujda_2021"]
[Result "0-1"]
[WhiteElo "2000"]
[BlackElo "2504"]
[TimeControl "180+1"]
[EndTime "14:26:46 PST"]
[Termination "Capablanca_Oujda_2021 won on time"]

1. e4 {[%clk 0:02:54.6]} 1... c5 {[%clk 0:02:59.5]} 2. Nc3 {[%clk 0:02:54]} 2...
d6 {[%clk 0:02:59.5]} 3. g3 {[%clk 0:02:52.5]} 3... g6 {[%clk 0:02:59.3]} 4. Bg2
{[%clk 0:02:48.1]} 4... Bg7 {[%clk 0:02:59.4]} 5. Nge2 {[%clk 0:02:48.1]} 5...
Nf6 {[%clk 0:02:59.5]} 6. d3 {[%clk 0:02:46.7]} 6... O-O {[%clk 0:02:58.1]} 7.
h3 {[%clk 0:02:47.2]} 7... e6 {[%clk 0:02:57.6]} 8. O-O {[%clk 0:02:47.7]} 8...
d5 {[%clk 0:02:56]} 9. exd5 {[%clk 0:02:47.2]} 9... exd5 {[%clk 0:02:56.9]} 10.
Bg5 {[%clk 0:02:47.1]} 10... d4 {[%clk 0:02:41.9]} 11. Ne4 {[%clk 0:02:37.7]}
11... Na6 {[%clk 0:02:30.8]} 12. Nf4 {[%clk 0:02:16.2]} 12... Re8 {[%clk
0:02:12.6]} 13. Nd5 {[%clk 0:01:55.9]} 13... Nxd5 {[%clk 0:02:05.8]} 14. Bxd8
{[%clk 0:01:54.7]} 14... Rxd8 {[%clk 0:02:06.7]} 15. Qd2 {[%clk 0:01:37.9]}
15... b6 {[%clk 0:01:59]} 16. c4 {[%clk 0:01:35.2]} 16... dxc3 {[%clk
0:01:55.6]} 17. bxc3 {[%clk 0:01:33.7]} 17... Rb8 {[%clk 0:01:49.1]} 18. Rac1
{[%clk 0:01:32.7]} 18... h6 {[%clk 0:01:36.7]} 19. f4 {[%clk 0:00:54]} 19... f5
{[%clk 0:01:29.6]} 20. Nf2 {[%clk 0:00:53.5]} 20... Be6 {[%clk 0:01:29.8]} 21.
Rfe1 {[%clk 0:00:53.2]} 21... Bf7 {[%clk 0:01:29.2]} 22. a3 {[%clk 0:00:52.5]}
22... Rd7 {[%clk 0:01:26.9]} 23. g4 {[%clk 0:00:33.5]} 23... Rbd8 {[%clk
0:01:05.6]} 24. Qb2 {[%clk 0:00:20.2]} 24... Nac7 {[%clk 0:01:05.2]} 25. a4
{[%clk 0:00:18.8]} 25... Nxf4 {[%clk 0:01:03.6]} 26. a5 {[%clk 0:00:14.3]} 26...
b5 {[%clk 0:00:58.7]} 27. a6 {[%clk 0:00:14.2]} 27... Ncd5 {[%clk 0:00:52.9]}
28. Qa3 {[%clk 0:00:13]} 28... Nxg2 {[%clk 0:00:52]} 29. Kxg2 {[%clk 0:00:13]}
29... Nf4+ {[%clk 0:00:50.8]} 30. Kg1 {[%clk 0:00:10.5]} 30... Bf8 {[%clk
0:00:45.4]} 31. Qa5 {[%clk 0:00:10.1]} 31... Nxd3 {[%clk 0:00:40.9]} 32. Nxd3
{[%clk 0:00:09.7]} 32... Rxd3 {[%clk 0:00:41.8]} 33. Qxb5 {[%clk 0:00:09.8]}
33... Rg3+ {[%clk 0:00:35.9]} 34. Kh2 {[%clk 0:00:08.2]} 34... Rdd3 {[%clk
0:00:36.8]} 35. Re2 {[%clk 0:00:06.2]} 35... Bd6 {[%clk 0:00:35.6]} 0-1

[Event "Late-Titled-Tuesday-Blitz-February-20-2024"]
[Site "Chess.com"]
[Date "2024.02.20"]
[Round "3"]
[White "IMRosen"]
[Black "igorkovalenko"]
[Result "1-0"]
[WhiteElo "2695"]
[BlackElo "2958"]
[TimeControl "180+1"]
[EndTime "14:26:51 PST"]
[Termination "IMRosen won by resignation"]

1. e4 {[%clk 0:03:00.9]} 1... d5 {[%clk 0:02:29.9]} 2. exd5 {[%clk 0:03:00.9]}
2... Qxd5 {[%clk 0:02:30.8]} 3. Nc3 {[%clk 0:03:01.4]} 3... Qa5 {[%clk
0:02:30.2]} 4. b4 {[%clk 0:02:59.1]} 4... Qxb4 {[%clk 0:02:29.6]} 5. Nb5 {[%clk
0:02:59.8]} 5... Qa5 {[%clk 0:02:21.9]} 6. Bc4 {[%clk 0:02:59.7]} 6... c6 {[%clk
0:02:20.6]} 7. Bxf7+ {[%clk 0:02:59.9]} 7... Kxf7 {[%clk 0:02:17.3]} 8. Qh5+
{[%clk 0:02:59.8]} 8... g6 {[%clk 0:02:17.6]} 9. Nd6+ {[%clk 0:03:00.1]} 9...
exd6 {[%clk 0:02:17.7]} 10. Qxa5 {[%clk 0:03:00.6]} 10... Bg7 {[%clk 0:02:10.1]}
11. Rb1 {[%clk 0:02:51.4]} 11... Ne7 {[%clk 0:02:10.1]} 12. Nf3 {[%clk
0:02:44.6]} 12... Re8 {[%clk 0:02:09.2]} 13. O-O {[%clk 0:02:44.3]} 13... Na6
{[%clk 0:02:07.3]} 14. Bb2 {[%clk 0:02:39.8]} 14... Bxb2 {[%clk 0:02:01.6]} 15.
Rxb2 {[%clk 0:02:40.7]} 15... h6 {[%clk 0:01:50.3]} 16. Re1 {[%clk 0:02:40.6]}
16... b6 {[%clk 0:01:47.5]} 17. Qa4 {[%clk 0:02:33.8]} 17... g5 {[%clk
0:01:36.6]} 18. Qc4+ {[%clk 0:02:11.4]} 18... d5 {[%clk 0:01:33.5]} 19. Qd3
{[%clk 0:02:11.9]} 19... Kg7 {[%clk 0:00:51.5]} 20. Re5 {[%clk 0:02:07.3]} 20...
Nc5 {[%clk 0:00:49]} 21. Qe2 {[%clk 0:02:03.7]} 21... Kf6 {[%clk 0:00:46.9]} 22.
Rb1 {[%clk 0:01:54.2]} 22... Bd7 {[%clk 0:00:47]} 23. Re1 {[%clk 0:01:52.3]}
23... Ng6 {[%clk 0:00:47.4]} 24. Rxe8 {[%clk 0:01:38.8]} 24... Rxe8 {[%clk
0:00:48.3]} 25. Qd1 {[%clk 0:01:39.4]} 25... Ne4 {[%clk 0:00:38.6]} 26. d3
{[%clk 0:01:27.4]} 26... Nc3 {[%clk 0:00:38.7]} 27. Qa1 {[%clk 0:01:27.6]} 27...
Rxe1+ {[%clk 0:00:38.4]} 28. Qxe1 {[%clk 0:01:28.2]} 28... Nb5 {[%clk
0:00:37.2]} 29. Qa1+ {[%clk 0:01:16.7]} 29... Kf7 {[%clk 0:00:36.7]} 30. Ne5+
{[%clk 0:01:16.5]} 30... Nxe5 {[%clk 0:00:36.9]} 31. Qxe5 {[%clk 0:01:17.4]}
31... d4 {[%clk 0:00:30.4]} 32. Kf1 {[%clk 0:00:54]} 32... c5 {[%clk 0:00:30.1]}
33. Qd5+ {[%clk 0:00:49.2]} 33... Ke7 {[%clk 0:00:25.1]} 34. Qe5+ {[%clk
0:00:47.8]} 34... Kf7 {[%clk 0:00:25.2]} 35. Qh8 {[%clk 0:00:48]} 35... Kg6
{[%clk 0:00:25.1]} 36. Qg8+ {[%clk 0:00:46.3]} 36... Kf6 {[%clk 0:00:25.2]} 37.
Qh7 {[%clk 0:00:45]} 37... Be6 {[%clk 0:00:22.6]} 38. Qxh6+ {[%clk 0:00:44.4]}
38... Kf7 {[%clk 0:00:23.2]} 39. Qh7+ {[%clk 0:00:43.8]} 39... Kf6 {[%clk
0:00:22.8]} 40. a4 {[%clk 0:00:44.2]} 40... Nc3 {[%clk 0:00:22.7]} 41. Qxa7
{[%clk 0:00:43.8]} 41... Ke5 {[%clk 0:00:17.3]} 42. Qc7+ {[%clk 0:00:35.9]}
42... Kd5 {[%clk 0:00:17.1]} 43. Qxb6 {[%clk 0:00:29.7]} 43... Nxa4 {[%clk
0:00:16.9]} 44. Qb3+ {[%clk 0:00:29.6]} 1-0

[Event "Late-Titled-Tuesday-Blitz-February-20-2024"]
[Site "Chess.com"]
[Date "2024.02.20"]
[Round "3"]
[White "jinxy2009"]
[Black "KorolDimitriy75"]
[Result "0-1"]
[WhiteElo "2189"]
[BlackElo "2418"]
[TimeControl "180+1"]
[EndTime "14:26:53 PST"]
[Termination "KorolDimitriy75 won on time"]

1. e4 {[%clk 0:03:00.9]} 1... c5 {[%clk 0:03:00.3]} 2. Nf3 {[%clk 0:03:00.1]}
2... d6 {[%clk 0:03:00.6]} 3. d4 {[%clk 0:03:00.6]} 3... cxd4 {[%clk 0:03:01.5]}
4. Nxd4 {[%clk 0:03:00.7]} 4... Nf6 {[%clk 0:03:02.1]} 5. Nc3 {[%clk 0:03:00.6]}
5... g6 {[%clk 0:03:02.8]} 6. Be3 {[%clk 0:02:55.1]} 6... Bg7 {[%clk 0:03:03.2]}
7. f3 {[%clk 0:02:55.3]} 7... O-O {[%clk 0:03:03.8]} 8. Bc4 {[%clk 0:02:52.3]}
8... Nc6 {[%clk 0:03:04.2]} 9. Qd2 {[%clk 0:02:52.5]} 9... Bd7 {[%clk
0:03:04.3]} 10. O-O-O {[%clk 0:02:52.7]} 10... Qa5 {[%clk 0:03:04.3]} 11. Bb3
{[%clk 0:02:49.8]} 11... Rfc8 {[%clk 0:03:04.2]} 12. h4 {[%clk 0:02:37.2]} 12...
Ne5 {[%clk 0:03:04.2]} 13. Bg5 {[%clk 0:02:20]} 13... Nc4 {[%clk 0:01:39.2]} 14.
Bxc4 {[%clk 0:01:26]} 14... Rxc4 {[%clk 0:01:40.1]} 15. Nb3 {[%clk 0:01:26]}
15... Qe5 {[%clk 0:00:45]} 16. h5 {[%clk 0:00:31.7]} 16... Rxc3 {[%clk
0:00:37.3]} 17. bxc3 {[%clk 0:00:27.6]} 17... Nxh5 {[%clk 0:00:32.9]} 18. g4
{[%clk 0:00:21.3]} 18... Nf6 {[%clk 0:00:24.7]} 19. Bf4 {[%clk 0:00:11.2]} 19...
Qe6 {[%clk 0:00:14.2]} 20. Kb2 {[%clk 0:00:08.2]} 20... Rc8 {[%clk 0:00:13.1]}
21. e5 {[%clk 0:00:05.9]} 21... dxe5 {[%clk 0:00:11.7]} 22. Bg5 {[%clk
0:00:03.2]} 22... Bc6 {[%clk 0:00:11.9]} 23. Qh2 {[%clk 0:00:01.8]} 23... e4
{[%clk 0:00:09.5]} 24. Bxf6 {[%clk 0:00:02.2]} 24... Qxf6 {[%clk 0:00:08.9]} 25.
Qxh7+ {[%clk 0:00:02.7]} 25... Kf8 {[%clk 0:00:08.9]} 26. Kc1 {[%clk 0:00:01.9]}
26... exf3 {[%clk 0:00:08.3]} 27. g5 {[%clk 0:00:01.9]} 27... Qxc3 {[%clk
0:00:08.3]} 0-1